bitfinex/quotes_BTCUSD_20240823
["timestamp","ask_amount","ask_price","bid_price","bid_amount"]
[1724429904858,0.0254848,61555.0,61554.0,0.28671]
[1724429905158,0.0454848,61555.0,61554.0,0.28771]
[1724429905650,0.0324848,61555.0,61554.0,0.28771]
[1724429906462,0.0254848,61555.0,61554.0,0.28671]
[1724429906794,0.0264848,61555.0,61554.0,0.29471]
[1724429907259,0.0264848,61555.0,61554.0,1.108002]
[1724429907487,0.0264848,61555.0,61554.0,1.130002]
[1724429908093,0.0254848,61555.0,61554.0,1.122002]
[1724429908339,0.0254848,61555.0,61554.0,0.479168]
[1724429908340,0.0264848,61555.0,61554.0,0.479168]
[1724429908459,0.0274848,61555.0,61554.0,0.813085]
[1724429908696,0.0274848,61555.0,61554.0,1.138002]
[1724429908917,0.0274848,61555.0,61554.0,0.813085]
[1724429909757,0.0274848,61555.0,61554.0,1.129002]
[1724429909758,0.001,61555.0,61554.0,1.129002]
[1724429909955,0.0009053,61558.0,61557.0,0.854653]
[1724429910165,0.0009053,61558.0,61557.0,1.179555]
[1724429910494,0.0009053,61558.0,61557.0,1.202555]
[1724429910658,0.0009053,61558.0,61557.0,1.205555]
[1724429910862,0.0009053,61558.0,61557.0,1.69145998]
[1724429911240,0.02547944,61562.0,61561.0,1.504983]
[1724429911475,0.0009053,61574.0,61573.0,0.162408]
[1724429911679,0.0009053,61574.0,61573.0,0.0487234]
[1724429911893,0.0009053,61574.0,61573.0,0.2478234]
[1724429912101,0.02638012,61574.0,61573.0,0.1991]
[1724429913307,0.02638012,61574.0,61573.0,1.01438986]
[1724429913510,0.02638012,61574.0,61573.0,1.34264498]
[1724429913710,0.02638012,61574.0,61573.0,1.69346198]
[1724429913952,0.02638012,61574.0,61573.0,1.69046198]
[1724429914153,0.02638012,61574.0,61573.0,1.69446198]
[1724429914354,0.02638012,61574.0,61573.0,1.7016258]
[1724429914536,0.02638012,61574.0,61573.0,1.7026258]
[1724429914733,0.02638012,61574.0,61573.0,1.6996258]
[1724429915155,0.02638012,61574.0,61573.0,1.3708088]
[1724429915578,0.0009053,61574.0,61573.0,1.3708088]
[1724429915775,0.00907501,61593.0,61585.0,0.324753]
[1724429916005,0.00907501,61593.0,61588.0,0.2084]
[1724429916161,0.02546768,61592.0,61588.0,0.370768]
[1724429916368,0.02546768,61592.0,61588.0,0.2084]
[1724429916571,0.02546768,61592.0,61590.0,0.2084]
[1724429917499,0.02746768,61592.0,61590.0,0.2084]
[1724429917694,0.02546768,61592.0,61590.0,0.2084]
[1724429918239,0.03346768,61592.0,61590.0,0.2104]
[1724429919964,0.03146768,61592.0,61590.0,0.2094]
[1724429920459,0.03146768,61592.0,61590.0,0.24664]
[1724429920665,0.02546768,61592.0,61590.0,0.24564]
[1724429920870,0.02546768,61592.0,61590.0,0.2094]
[1724429921045,0.02546768,61592.0,61590.0,0.2124]
[1724429922952,0.02546768,61592.0,61591.0,0.16560786]
[1724429923082,0.02546768,61592.0,61591.0,1.17505186]
[1724429923284,0.02846768,61592.0,61591.0,1.17505186]
[1724429923486,0.02946768,61592.0,61591.0,1.17505186]
[1724429923689,0.02546768,61592.0,61591.0,0.36]
[1724429924313,0.02546768,61592.0,61591.0,0.363]
[1724429924692,0.02546768,61592.0,61591.0,0.36]
[1724429924890,0.02637298,61592.0,61591.0,0.2121]
[1724429926251,0.02737298,61592.0,61591.0,0.2141]
[1724429926404,0.02737298,61592.0,61591.0,0.2151]
[1724429926607,0.02637298,61592.0,61591.0,0.2021]
[1724429926950,0.02637298,61592.0,61591.0,0.2051]
[1724429931471,0.83816498,61592.0,61591.0,0.004]
[1724429931681,0.51344798,61592.0,61591.0,0.004]
[1724429932364,1.32688496,61592.0,61591.0,0.004]
[1724429932895,0.02637298,61592.0,61591.0,0.004]
[1724429933101,0.02637298,61592.0,61591.0,0.3589]
[1724429933422,0.02637298,61592.0,61591.0,0.4100266]
[1724429933423,0.02937298,61592.0,61591.0,0.4100266]
[1724429933622,0.03137298,61592.0,61591.0,0.4100266]
[1724429934248,0.03137298,61592.0,61591.0,0.3579]
[1724429935395,0.02837298,61592.0,61591.0,0.3579]
[1724429935911,0.03137298,61592.0,61591.0,0.3579]
[1724429936188,0.02837298,61592.0,61591.0,0.3579]
[1724429936394,0.02637298,61592.0,61591.0,0.3579]
[1724429936592,0.02837298,61592.0,61591.0,0.3599]
[1724429936943,0.02637298,61592.0,61591.0,0.3599]
[1724429937290,0.02637298,61592.0,61591.0,0.3649]
[1724429937468,0.02737298,61592.0,61591.0,0.4094094]
[1724429937884,0.02737298,61592.0,61591.0,0.2444094]
[1724429938120,0.02737298,61592.0,61591.0,0.2079]
[1724429938557,0.18973098,61592.0,61591.0,0.015]
[1724429938760,0.51444798,61592.0,61591.0,0.015]
[1724429939187,0.18973098,61592.0,61591.0,0.015]
[1724429939410,0.02737298,61592.0,61591.0,0.015]
[1724429940353,0.18973098,61592.0,61591.0,0.015]
[1724429940560,0.02737298,61592.0,61591.0,0.015]
[1724429941138,0.18973098,61592.0,61591.0,0.015]
[1724429941347,0.51444798,61592.0,61591.0,0.015]
[1724429941549,0.67845096,61592.0,61591.0,0.015]
[1724429941743,1.16866796,61592.0,61591.0,0.015]
[1724429942146,0.162363,61591.0,61585.0,0.1908]
[1724429942305,0.68059296,61592.0,61585.0,0.1908]
[1724429942510,0.84295096,61592.0,61591.0,0.002]
[1724429942942,0.162363,61591.0,61585.0,0.1908]
[1724429943144,0.324723,61591.0,61585.0,0.1908]
[1724429943338,0.162362,61591.0,61585.0,0.1908]
[1724429943546,0.162362,61591.0,61585.0,0.1938]
[1724429943742,0.51509796,61592.0,61585.0,0.1938]
[1724429943902,0.162362,61591.0,61585.0,0.1938]
[1724429944099,0.19037596,61592.0,61585.0,0.1938]
[1724429944100,0.35273496,61592.0,61585.0,0.1938]
[1724429945023,0.35273496,61592.0,61585.0,0.1908]
[1724429945024,0.19037596,61592.0,61585.0,0.1908]
[1724429945483,0.162364,61590.0,61585.0,0.1928]
[1724429945712,0.35273496,61592.0,61585.0,0.1938]
[1724429945881,0.162362,61591.0,61585.0,0.1928]
[1724429946086,0.19037596,61592.0,61585.0,0.1928]
[1724429946087,0.162364,61590.0,61585.0,0.1928]
[1724429946284,0.162364,61590.0,61585.0,0.1908]
[1724429946688,0.51509696,61592.0,61585.0,0.1908]
[1724429946689,0.51509696,61592.0,61585.0,0.1948]
[1724429946920,0.162365,61590.0,61585.0,0.1968]
[1724429947094,0.162361,61591.0,61585.0,0.1968]
[1724429947761,0.19037596,61592.0,61585.0,0.1968]
[1724429948045,0.35273496,61592.0,61585.0,0.1968]
[1724429948267,0.35273496,61592.0,61585.0,0.1928]
[1724429948268,0.02637298,61592.0,61585.0,0.1928]
[1724429948380,0.02637298,61592.0,61588.0,0.31117985]
[1724429948592,0.02637298,61592.0,61591.0,0.853883]
[1724429948793,0.02637298,61592.0,61591.0,1.201605]
[1724429949019,0.02637298,61592.0,61591.0,0.3668]
[1724429949625,0.00907501,61604.0,61603.0,0.486988]
[1724429949793,0.00907501,61604.0,61603.0,1.15276785]
[1724429950032,0.00907501,61604.0,61603.0,1.31677083]
[1724429950207,0.00907501,61604.0,61603.0,1.66442983]
[1724429950588,0.00907501,61617.0,61614.0,0.162299]
[1724429950763,0.00907501,61617.0,61616.0,0.3691]
[1724429951377,0.00907501,61617.0,61616.0,1.04298898]
[1724429951608,0.00907501,61620.0,61619.0,0.849562]
[1724429951800,0.00907501,61620.0,61619.0,1.03656498]
[1724429951933,0.00907501,61620.0,61619.0,1.39370998]
[1724429952137,0.49229154,61634.0,61623.0,1.172085]
[1724429952340,0.00906401,61636.0,61628.0,0.1625]
[1724429952585,0.00906401,61636.0,61632.0,0.1625]
[1724429952792,0.00906401,61636.0,61633.0,0.16400298]
[1724429952975,0.00906401,61636.0,61635.0,0.372245]
[1724429953177,0.00906401,61636.0,61635.0,0.86073798]
[1724429953356,0.00906401,61636.0,61635.0,0.39700298]
[1724429954031,0.00906401,61636.0,61635.0,0.88373798]
[1724429954300,0.00906401,61636.0,61635.0,0.55924798]
[1724429954829,0.00906401,61636.0,61635.0,0.39700298]
[1724429955100,0.00906401,61636.0,61635.0,0.21518339]
[1724429955606,0.00906401,61636.0,61635.0,0.21]
[1724429955797,0.00906401,61636.0,61635.0,0.224]
[1724429955919,0.00906401,61636.0,61635.0,0.238]
[1724429956327,0.00906401,61636.0,61635.0,0.26405]
[1724429956328,0.03451308,61636.0,61635.0,0.26405]
[1724429956538,0.03451308,61636.0,61635.0,0.21]
[1724429956740,0.03451308,61636.0,61635.0,0.224]
[1724429957519,0.03451308,61636.0,61635.0,0.237]
[1724429958212,0.03451308,61636.0,61635.0,0.223]
[1724429958436,0.03451308,61636.0,61635.0,0.224]
[1724429958593,0.03451308,61636.0,61635.0,0.211]
[1724429958795,0.03451308,61636.0,61635.0,0.2807766]
[1724429959165,0.03451308,61636.0,61635.0,0.2927766]
[1724429959439,0.03551308,61636.0,61635.0,0.219]
[1724429959591,0.03551308,61636.0,61635.0,0.41400298]
[1724429959794,0.03451308,61636.0,61635.0,0.40500298]
[1724429960115,0.03551308,61636.0,61635.0,0.58424798]
[1724429960359,0.03551308,61636.0,61635.0,0.91392194]
[1724429960538,0.03551308,61636.0,61635.0,0.58943194]
[1724429960938,0.03551308,61636.0,61635.0,0.58228694]
[1724429961305,0.01006401,61636.0,61635.0,1.07202194]
[1724429961504,0.01006401,61636.0,61635.0,1.39851194]
[1724429961708,0.01006401,61636.0,61635.0,1.39451194]
[1724429961917,0.00906401,61636.0,61635.0,1.36951194]
[1724429962116,0.00906401,61636.0,61635.0,1.37151194]
[1724429962416,0.01006401,61636.0,61635.0,1.39051194]
[1724429962594,0.01006401,61636.0,61635.0,1.38251194]
[1724429962806,0.00906401,61636.0,61635.0,1.36951194]
[1724429962989,0.00906401,61636.0,61635.0,1.38551194]
[1724429963188,0.01006401,61636.0,61635.0,1.39951194]
[1724429963741,0.01006401,61636.0,61635.0,1.72400194]
[1724429963943,0.01006401,61636.0,61635.0,1.82600194]
[1724429968395,0.01006401,61636.0,61635.0,2.53871548]
[1724429968595,0.01006401,61636.0,61635.0,2.21422548]
[1724429969008,0.01006401,61636.0,61635.0,2.53871548]
[1724429969221,0.0002,61639.0,61638.0,1.465137]
[1724429969438,0.0009053,61653.0,61652.0,0.491601]
[1724429969681,0.0009053,61653.0,61652.0,2.23398962]
[1724429969854,0.0009053,61653.0,61652.0,2.26655962]
[1724429970059,0.0009053,61653.0,61652.0,2.59096062]
[1724429972403,0.0009053,61653.0,61652.0,2.60496062]
[1724429972831,0.0009053,61653.0,61652.0,2.61012306]
[1724429972981,0.0009053,61653.0,61652.0,2.62412306]
[1724429973383,0.0009053,61654.0,61653.0,1.861052]
[1724429973549,0.0009053,61654.0,61653.0,2.20575031]
[1724429973745,0.0009053,61654.0,61653.0,1.88135431]
[1724429974012,0.0009053,61654.0,61653.0,0.58539831]
[1724429974212,0.0009053,61654.0,61653.0,0.90809231]
[1724429974422,0.0009053,61654.0,61653.0,1.55688431]
[1724429974598,0.0009053,61654.0,61653.0,1.57088431]
[1724429974800,0.0009053,61654.0,61653.0,1.58488431]
[1724429974976,0.0009053,61654.0,61653.0,1.62245431]
[1724429975177,0.0009053,61654.0,61653.0,2.08715031]
[1724429975403,0.0009053,61654.0,61653.0,2.20115031]
[1724429975614,0.0009053,61654.0,61653.0,2.19715031]
[1724429976010,0.0009053,61654.0,61653.0,1.57035831]
[1724429976214,0.0009053,61654.0,61653.0,1.52878831]
[1724429976508,0.0009053,61654.0,61653.0,1.84018431]
[1724429977329,0.0009053,61654.0,61653.0,1.82818431]
[1724429977686,0.0009053,61654.0,61653.0,1.82618431]
[1724429977896,0.0009053,61654.0,61653.0,1.84918431]
[1724429978071,0.0009053,61654.0,61653.0,1.86518431]
[1724429978413,0.0009053,61654.0,61653.0,1.87618431]
[1724429978615,0.0009053,61654.0,61653.0,1.84818431]
[1724429979115,0.0009053,61654.0,61653.0,1.22739231]
[1724429979315,0.0009053,61654.0,61653.0,1.55178831]
[1724429980431,0.0009053,61654.0,61653.0,1.55278831]
[1724429981017,0.0009053,61654.0,61653.0,1.55178831]
[1724429985110,0.0009053,61654.0,61653.0,1.22739231]
[1724429985353,0.0009053,61654.0,61653.0,1.05909231]
[1724429985574,0.0009053,61654.0,61653.0,0.73469631]
[1724429985800,0.0009053,61654.0,61653.0,1.05909231]
[1724429986262,0.0009053,61654.0,61653.0,1.38348831]
[1724429986756,0.0009053,61654.0,61653.0,1.05909231]
[1724429987445,0.0009053,61654.0,61653.0,1.38348831]
[1724429988638,0.0009053,61654.0,61653.0,1.69385333]
[1724429989176,0.0009053,61654.0,61653.0,1.36945733]
[1724429989623,0.0009053,61654.0,61653.0,1.69385333]
[1724429992795,0.0009053,61654.0,61653.0,1.85599226]
[1724429992948,0.0009053,61654.0,61653.0,1.85799226]
[1724429993153,0.0009053,61654.0,61653.0,2.18238826]
[1724429993714,0.0009053,61654.0,61653.0,2.16824933]
[1724429993974,0.0009053,61654.0,61653.0,2.18038456]
[1724429994821,0.0009053,61654.0,61653.0,1.85598856]
[1724429995195,0.0009053,61654.0,61653.0,1.85498856]
[1724429995361,0.0009053,61654.0,61653.0,1.02099856]
[1724429995562,0.0009053,61654.0,61653.0,0.85986333]
[1724429995802,0.0009053,61654.0,61653.0,1.03419656]
[1724429995960,0.0009053,61654.0,61653.0,0.44949831]
[1724429996599,0.02634289,61654.0,61653.0,0.45032031]
[1724429996804,0.02634289,61654.0,61653.0,0.25052031]
[1724429997369,0.02634289,61654.0,61653.0,0.41271831]
[1724429997682,0.0009053,61654.0,61653.0,1.04747933]
[1724429997887,0.0009053,61654.0,61653.0,1.07047933]
[1724429999406,0.0009053,61654.0,61653.0,1.39487533]
[1724429999827,0.0009053,61654.0,61653.0,1.07047933]
[1724430000425,0.0009053,61654.0,61653.0,0.74608333]
[1724430000672,0.0009053,61654.0,61653.0,0.58388533]
[1724430000901,0.02634283,61654.0,61653.0,0.58388533]
[1724430001117,0.18424283,61654.0,61653.0,0.028822]
[1724430001325,0.50193783,61654.0,61653.0,0.028822]
[1724430001551,0.33974283,61654.0,61653.0,0.028822]
[1724430001752,0.18424283,61654.0,61653.0,0.028822]
[1724430002040,0.02634283,61654.0,61653.0,0.014822]
[1724430003257,0.02634283,61654.0,61653.0,1.2380593]
[1724430003461,0.02634283,61654.0,61653.0,0.9196217]
[1724430003795,0.02634283,61654.0,61653.0,1.5634137]
[1724430003796,0.0009053,61654.0,61653.0,1.5634137]
[1724430003974,0.0009053,61654.0,61653.0,1.75258898]
[1724430004385,0.0009053,61654.0,61653.0,1.75358898]
[1724430004613,0.0009053,61654.0,61653.0,1.84358898]
[1724430004806,0.0009053,61654.0,61653.0,1.85658898]
[1724430005103,0.0009053,61654.0,61653.0,1.8312137]
[1724430005257,0.0009053,61654.0,61653.0,1.85258832]
[1724430005457,0.0009053,61654.0,61653.0,1.85658832]
[1724430005705,0.0009053,61654.0,61653.0,1.85158832]
[1724430005918,0.0009053,61654.0,61653.0,1.86658844]
[1724430006109,0.0009053,61654.0,61653.0,1.53919244]
[1724430006312,0.0009053,61654.0,61653.0,1.54019244]
[1724430006515,0.0009053,61654.0,61653.0,1.86658844]
[1724430006826,0.0009053,61654.0,61653.0,1.86858844]
[1724430007274,0.0009053,61654.0,61653.0,1.86458844]
[1724430007476,0.0009053,61654.0,61653.0,1.86858644]
[1724430008659,0.0009053,61654.0,61653.0,1.54019044]
[1724430008914,0.0009053,61654.0,61653.0,1.53919044]
[1724430009127,0.0009053,61654.0,61653.0,1.5138177]
[1724430009330,0.0009053,61654.0,61653.0,0.76259486]
[1724430009474,0.0009053,61654.0,61653.0,0.7372217]
[1724430009710,0.0009053,61654.0,61653.0,1.0616177]
[1724430011318,0.0009053,61654.0,61653.0,1.2656177]
[1724430011654,0.0009053,61654.0,61653.0,1.4171177]
[1724430011856,0.0009053,61654.0,61653.0,1.5171177]
[1724430012059,0.0009053,61654.0,61653.0,1.8415137]
[1724430012283,0.02543539,61665.0,61664.0,0.1997]
[1724430012487,0.02543539,61665.0,61664.0,1.628283]
[1724430012651,0.02543539,61665.0,61664.0,1.64225598]
[1724430012976,0.02543539,61665.0,61664.0,1.31691798]
[1724430013479,0.02543539,61665.0,61664.0,1.00357998]
[1724430013695,0.02543539,61665.0,61664.0,0.81003212]
[1724430014261,0.02543539,61665.0,61664.0,1.14637012]
[1724430015086,0.02543539,61665.0,61664.0,1.13437012]
[1724430015497,0.02543539,61665.0,61664.0,1.14637012]
[1724430015881,0.02543539,61665.0,61664.0,1.13537012]
[1724430016110,0.02543539,61665.0,61664.0,0.72503212]
[1724430016310,0.18873539,61665.0,61664.0,0.03115214]
[1724430016930,0.18873539,61665.0,61664.0,0.014]
[1724430016931,0.32883539,61665.0,61664.0,0.014]
[1724430017569,0.32883539,61665.0,61664.0,0.025]
[1724430018367,0.32883539,61665.0,61664.0,0.011]
[1724430018607,0.32883539,61665.0,61664.0,0.016]
[1724430018815,0.32883539,61665.0,61664.0,0.005]
[1724430019200,0.32883539,61665.0,61664.0,0.009]
[1724430019971,0.02543539,61665.0,61664.0,1.332344]
[1724430020199,0.02543539,61665.0,61664.0,1.193175]
[1724430020354,0.02634069,61665.0,61664.0,0.992875]
[1724430021072,0.02634069,61665.0,61664.0,1.312213]
[1724430021272,0.02634069,61665.0,61664.0,1.636551]
[1724430021514,0.02634069,61665.0,61664.0,1.522513]
[1724430021926,0.02634069,61665.0,61664.0,1.518513]
[1724430022327,0.02634069,61665.0,61664.0,1.527513]
[1724430022516,0.02634069,61665.0,61664.0,0.172169]
[1724430022725,0.02634069,61665.0,61664.0,0.17714891]
[1724430022929,0.02634069,61665.0,61664.0,0.18014891]
[1724430023229,0.02634069,61665.0,61664.0,0.18114891]
[1724430023730,0.02634069,61665.0,61664.0,1.30419291]
[1724430024160,0.02634069,61665.0,61664.0,1.31819291]
[1724430024886,0.02634069,61665.0,61664.0,1.32119291]
[1724430025094,0.02634069,61665.0,61664.0,1.31819291]
[1724430025419,0.02634069,61665.0,61664.0,1.51779291]
[1724430026654,0.02634069,61665.0,61664.0,1.65969291]
[1724430027082,0.02634069,61665.0,61664.0,1.51779291]
[1724430027293,0.02634069,61665.0,61664.0,0.19698289]
[1724430027496,0.18854069,61665.0,61664.0,0.01897991]
[1724430027895,0.18854069,61665.0,61664.0,0.03297991]
[1724430028374,0.32864069,61665.0,61664.0,0.028]
[1724430028943,0.32864069,61665.0,61664.0,0.014]
[1724430029241,0.18854069,61665.0,61664.0,0.02712709]
[1724430029378,0.18854069,61665.0,61664.0,0.009]
[1724430029584,0.18854069,61665.0,61664.0,0.01]
[1724430030030,0.18854069,61665.0,61664.0,0.004]
[1724430030344,0.02634069,61665.0,61664.0,0.009]
[1724430030538,0.02634069,61665.0,61664.0,0.2405072]
[1724430030769,0.02634069,61665.0,61664.0,0.5648452]
[1724430030961,0.02634069,61665.0,61664.0,1.05642922]
[1724430031189,0.02634069,61665.0,61664.0,1.24268618]
[1724430032435,0.02634069,61665.0,61664.0,1.24368618]
[1724430032660,0.02634069,61665.0,61664.0,1.24268618]
[1724430033835,0.02634069,61665.0,61664.0,1.24368618]
[1724430033998,0.02634069,61665.0,61664.0,1.24268618]
[1724430034605,0.02634069,61665.0,61664.0,1.24368618]
[1724430034825,0.02634069,61665.0,61664.0,1.57002418]
[1724430035232,0.02634069,61665.0,61664.0,1.59002418]
[1724430035633,0.02634069,61665.0,61664.0,1.59102418]
[1724430036366,0.02634069,61665.0,61664.0,1.59002418]
[1724430037510,0.02634069,61665.0,61664.0,1.24268618]
[1724430038509,0.02634069,61665.0,61664.0,0.009]
[1724430038707,0.16644069,61665.0,61664.0,0.009]
[1724430041753,0.02634069,61665.0,61664.0,0.009]
[1724430042898,0.02634069,61665.0,61664.0,0.65950998]
[1724430043102,0.02634069,61665.0,61664.0,1.30818598]
[1724430043941,0.02634069,61665.0,61664.0,0.98384798]
[1724430045356,0.02634069,61665.0,61664.0,0.97984798]
[1724430045756,0.02634069,61665.0,61664.0,0.99384798]
[1724430046426,0.02634069,61665.0,61664.0,1.20334798]
[1724430046980,0.02634069,61665.0,61664.0,1.20434798]
[1724430047184,0.02634069,61665.0,61664.0,1.20334798]
[1724430047591,0.02634069,61665.0,61664.0,1.54168598]
[1724430047773,0.02634069,61665.0,61664.0,1.54268598]
[1724430048130,0.02634069,61665.0,61664.0,1.52868598]
[1724430048255,0.02634069,61665.0,61664.0,1.54168598]
[1724430048647,0.02634069,61665.0,61664.0,1.50868598]
[1724430048865,0.02634069,61665.0,61664.0,1.52268598]
[1724430049065,0.02634069,61665.0,61664.0,1.53768598]
[1724430049378,0.02634069,61665.0,61664.0,1.52568598]
[1724430049583,0.02634069,61665.0,61664.0,1.53968598]
[1724430049781,0.02634069,61665.0,61664.0,1.52568598]
[1724430050004,0.0009053,61665.0,61664.0,1.52568598]
[1724430050364,0.0009053,61665.0,61664.0,1.51368598]
[1724430050659,0.0009053,61665.0,61664.0,1.52768598]
[1724430051501,0.0009053,61665.0,61664.0,1.54168598]
[1724430051772,0.0003197,61665.0,61664.0,1.52768598]
[1724430052209,0.00090421,61670.0,61669.0,1.79405702]
[1724430052336,0.00090421,61670.0,61669.0,2.08106]
[1724430052540,0.00090421,61670.0,61669.0,2.12950765]
[1724430052744,0.00090421,61670.0,61669.0,2.08106]
[1724430053336,0.00090421,61670.0,61669.0,2.09506]
[1724430053538,0.00090421,61670.0,61669.0,2.09406]
[1724430053740,0.00090421,61670.0,61669.0,0.76447098]
[1724430053947,0.00090421,61670.0,61669.0,0.66447098]
[1724430054336,0.00090421,61670.0,61669.0,0.34015898]
[1724430054490,0.00090421,61670.0,61669.0,0.66951652]
[1724430054813,0.00090421,61670.0,61669.0,0.68351652]
[1724430055124,0.00090421,61670.0,61669.0,0.35920452]
[1724430055798,0.00090421,61670.0,61669.0,0.68351652]
[1724430057104,0.00090421,61670.0,61669.0,1.83080554]
[1724430057278,0.00090421,61670.0,61669.0,2.01040554]
[1724430057478,0.00090421,61670.0,61669.0,2.02155344]
[1724430057823,0.00090421,61670.0,61669.0,1.98540554]
[1724430058449,0.00090421,61670.0,61669.0,1.99755424]
[1724430059408,0.00090421,61670.0,61669.0,1.9975539]
[1724430059900,0.00090421,61670.0,61669.0,1.98540554]
[1724430060716,0.00090421,61670.0,61669.0,1.66109354]
[1724430062990,0.00090421,61670.0,61669.0,1.68409354]
[1724430065090,0.00090421,61670.0,61669.0,0.19704852]
[1724430065299,0.00090421,61670.0,61669.0,0.35920452]
[1724430065821,0.00090421,61670.0,61669.0,0.19704852]
[1724430066020,0.00090421,61670.0,61669.0,0.03304554]
[1724430066736,0.00090421,61670.0,61669.0,0.028]
[1724430067783,0.00090421,61670.0,61669.0,0.014]
[1724430068195,0.00090421,61670.0,61669.0,0.023]
[1724430069376,0.00108021,61670.0,61669.0,0.023]
[1724430070260,0.13828021,61670.0,61669.0,0.023]
[1724430070409,0.45373321,61670.0,61669.0,0.019]
[1724430070611,0.34016049,61670.0,61669.0,0.019]
[1724430070811,0.29158021,61670.0,61669.0,0.019]
[1724430071197,0.29158021,61670.0,61669.0,0.009]
[1724430071417,0.29158021,61670.0,61661.0,0.00516815]
[1724430071692,0.29158021,61670.0,61659.0,0.163003]
[1724430072188,0.02543572,61668.0,61659.0,0.163003]
[1724430072921,0.02543572,61668.0,61659.0,0.000823]
[1724430073124,0.02543572,61668.0,61659.0,0.163002]
[1724430073332,0.02543572,61668.0,61660.0,0.0811754]
[1724430073737,0.02543572,61668.0,61659.0,0.00603278]
[1724430074574,0.02543572,61668.0,61659.0,0.00903278]
[1724430074780,0.02543572,61668.0,61663.0,0.16217]
[1724430075135,0.02543572,61668.0,61664.0,0.1902]
[1724430075366,0.02543572,61668.0,61667.0,0.162161]
[1724430075527,0.02543572,61668.0,61667.0,0.08299719]
[1724430075849,0.02543572,61668.0,61667.0,0.24515819]
[1724430077599,0.02543572,61668.0,61667.0,0.08299719]
[1724430077773,0.02543572,61668.0,61667.0,0.08699719]
[1724430077975,0.02543572,61668.0,61667.0,0.08299719]
[1724430078351,0.02543572,61668.0,61667.0,0.58448019]
[1724430078726,0.02543572,61668.0,61667.0,0.57848019]
[1724430079131,0.02543572,61668.0,61667.0,1.06680517]
[1724430079304,0.02543572,61668.0,61667.0,0.75248317]
[1724430079843,0.02543572,61668.0,61667.0,0.75761281]
[1724430080398,0.02543572,61668.0,61667.0,1.08193481]
[1724430081030,0.02543572,61668.0,61667.0,0.67461562]
[1724430081981,0.02543572,61668.0,61667.0,0.99893762]
[1724430082635,0.02543572,61668.0,61667.0,1.78635962]
[1724430082780,0.02543572,61668.0,61667.0,2.11068162]
[1724430083198,0.00108021,61670.0,61669.0,0.99958]
[1724430083404,0.00108021,61670.0,61669.0,1.48789498]
[1724430083717,0.00108021,61670.0,61669.0,1.16358298]
[1724430084571,0.00108021,61670.0,61669.0,0.83927098]
[1724430084778,0.0265113,61670.0,61667.0,0.00512964]
[1724430084985,0.1367,61669.0,61667.0,0.014]
[1724430085222,0.0265113,61670.0,61667.0,0.025]
[1724430085453,0.0265113,61670.0,61668.0,0.36257196]
[1724430085657,0.0265113,61670.0,61669.0,0.176156]
[1724430085796,0.0265113,61670.0,61669.0,0.162156]
[1724430085998,0.0265113,61670.0,61669.0,0.486468]
[1724430086198,0.0265113,61670.0,61669.0,0.162156]
[1724430086445,0.0265113,61670.0,61669.0,0.23399533]
[1724430087292,0.0265113,61670.0,61669.0,1.18751803]
[1724430087436,0.0265113,61670.0,61669.0,1.03267533]
[1724430087952,0.0265113,61670.0,61669.0,0.73131031]
[1724430088149,0.0265113,61670.0,61669.0,0.72231031]
[1724430088699,0.0265113,61670.0,61669.0,0.74331031]
[1724430088914,0.0265113,61670.0,61669.0,0.73331031]
[1724430089085,0.0265113,61670.0,61669.0,0.72231031]
[1724430089316,0.0265113,61670.0,61669.0,0.74531031]
[1724430089532,0.0265113,61670.0,61669.0,0.73431031]
[1724430089902,0.0265113,61670.0,61669.0,1.06962231]
[1724430090113,0.0265113,61670.0,61669.0,1.05567533]
[1724430090322,0.0265113,61670.0,61669.0,1.37998733]
[1724430090747,0.0265113,61670.0,61669.0,0.74531031]
[1724430091238,0.0265113,61670.0,61669.0,0.72231031]
[1724430091441,0.0265113,61670.0,61669.0,0.73631031]
[1724430091643,0.0265113,61670.0,61669.0,0.74831031]
[1724430091882,0.0265113,61670.0,61669.0,0.73431031]
[1724430092086,0.0265113,61670.0,61669.0,1.06962231]
[1724430092294,0.0265113,61670.0,61669.0,0.185156]
[1724430093260,0.1811113,61670.0,61669.0,0.023]
[1724430094228,0.0265113,61670.0,61669.0,0.023]
[1724430099482,0.1546,61674.0,61669.0,0.023]
[1724430099483,0.15098743,61674.0,61669.0,0.023]
[1724430099803,0.02543395,61670.0,61669.0,0.023]
[1724430100417,0.02543395,61670.0,61669.0,0.011]
[1724430100603,0.02543395,61670.0,61665.0,0.00598554]
[1724430100802,0.02543395,61670.0,61669.0,0.008]
[1724430101002,0.02543395,61670.0,61669.0,0.014]
[1724430101203,0.02543395,61670.0,61669.0,0.008]
[1724430101405,0.02543395,61670.0,61667.0,0.16216]
[1724430101651,0.34192909,61670.0,61669.0,0.011]
[1724430101822,0.16213395,61670.0,61669.0,0.011]
[1724430102351,0.16213395,61670.0,61669.0,0.023]
[1724430102552,0.16213395,61670.0,61669.0,0.012]
[1724430102808,0.32523395,61670.0,61669.0,0.012]
[1724430103418,0.18943925,61670.0,61669.0,0.012]
[1724430103621,0.18943925,61670.0,61665.0,0.000823]
[1724430104110,0.18943925,61670.0,61669.0,0.009]
[1724430104312,0.18943925,61670.0,61669.0,0.004]
[1724430104488,0.18943925,61670.0,61665.0,0.000823]
[1724430104694,0.18943925,61670.0,61669.0,0.003]
[1724430105107,0.18943925,61670.0,61669.0,0.165156]
[1724430105351,0.02633925,61670.0,61669.0,0.5067902]
[1724430105550,3.16785653,61657.0,61656.0,0.0484307]
[1724430105855,3.16785653,61657.0,61656.0,0.960938]
[1724430105997,3.16785653,61657.0,61656.0,1.409318]
[1724430106202,3.16785653,61657.0,61656.0,1.408318]
[1724430106601,3.16785653,61657.0,61656.0,1.385318]
[1724430107025,3.16785653,61657.0,61656.0,1.709698]
[1724430107385,3.16785653,61657.0,61656.0,1.746698]
[1724430107800,3.16785653,61657.0,61656.0,1.747698]
[1724430108001,3.16785653,61657.0,61656.0,1.761698]
[1724430108542,3.16785653,61657.0,61656.0,2.111898]
[1724430108722,3.16785653,61657.0,61656.0,2.113898]
[1724430109139,3.16785653,61657.0,61656.0,2.110898]
[1724430110100,3.16785653,61657.0,61656.0,1.763518]
[1724430110334,3.16785653,61657.0,61656.0,0.19019]
[1724430110563,3.16785653,61657.0,61656.0,0.028]
[1724430111123,4.17869731,61657.0,61656.0,0.028]
[1724430111365,4.99145029,61657.0,61656.0,0.028]
[1724430111642,5.09445029,61657.0,61656.0,0.028]
[1724430111821,5.09145029,61657.0,61656.0,0.014]
[1724430112004,5.14091792,61657.0,61656.0,0.014]
[1724430112333,5.09245029,61657.0,61656.0,0.021]